{"text_format":"1","workbook":"xlsx","n_sheets":6,"sheets":["表紙","自己採点シート","学習自己点検シート ","単位修得状況確認表（共通教育科目）","単位修得状況確認表（専門教育科目）","累積グラフ"],"not_rendered":{"charts":11,"images":2,"macros":1,"external_links":0,"defined_names":5,"comments":0,"pivot_tables":0},"unopened":[],"bounds":{"document_bytes":16777216,"sheet_cells":100000,"rows_first":2000,"rows_last":500,"rows_between":2000,"halvings":0,"cell_chars":16384,"cell_head_chars":4096},"cells_cut":0,"cells_raw":0,"read":"whole","date_system":"1900"}

{"sheet":"表紙","index":0,"n_rows":34,"n_cols":2,"rows_kept":34,"cut":false,"hidden":false,"merged":[]}
[]
[]
[]
[]
[]
[]
[]
[]
[]
[]
[]
[null,"鹿児島大学工学部ポートフォリオ"]
[]
[]
[]
[]
[]
[]
[]
[]
[]
[]
[]
[]
[]
[]
[]
[]
[]
[]
[]
[null,"学科："]
[null,"氏名："]
[null,"学籍番号："]

{"sheet":"自己採点シート","index":1,"n_rows":22,"n_cols":21,"rows_kept":22,"cut":false,"hidden":false,"merged":[[12,2,12,5],[3,10,3,11],[3,19,3,20],[9,2,9,5],[10,2,10,5],[11,2,11,5],[19,2,19,5],[20,2,20,5],[21,2,21,5],[13,2,13,5],[14,2,14,5],[15,2,15,5],[16,2,16,5],[17,2,17,5],[18,2,18,5]]}
[]
[null,"自己採点シート"]
[]
[null,null,null,null,null,null,null,null,null,"学籍番号",null,null,null,null,null,null,null,null,"氏名"]
[]
[null,"■学生のみなさんへ"]
[null,null,"今期受講した科目に関して、以下の項目に対して自己採点をしてください。(１０点満点)"]
[]
[]
[null,null,"項目",null,null,null,"2016年度\n前期","2016年度\n後期","2017年度\n前期","2017年度\n後期","2018年度\n前期","2018年度\n後期","2018年度\n前期","2018年度\n後期","2019年度\n前期","2019年度\n後期","2020年度\n前期","2020年度\n後期","2019年度\n前期","2019年度\n後期","卒業時"]
[null,1,"工学に関しての基礎知識\n（物理・化学・数学・情報など）"]
[null,2,"各工学分野での基礎知識\n（専門科目など）"]
[null,3,"人前での発表能力"]
[null,4,"人と話し合ったり議論する能力"]
[null,5,"チームの一員として取り組める（チームワーク）能力"]
[null,6,"英語、その他外国語による表現力"]
[null,7,"読書、講習会への参加、英会話や情報処理学習など大学以外での学習による自己啓発・生涯学習能力"]
[null,8,"社会性や国際感覚が身についているか。"]
[null,9,"倫理観、責任感が身についているか。"]
[null,10]
[null,11]
[null,12]

{"sheet":"学習自己点検シート ","index":2,"n_rows":68,"n_cols":13,"rows_kept":68,"cut":false,"hidden":false,"merged":[[4,8,4,9],[4,11,4,12],[7,2,7,12]]}
[]
[null,null,null,null,null,null,null,null,null,null,null,"年度","期"]
[null,"学習自己点検シート"]
[]
[null,null,null,null,null,null,null,"学籍番号",null,null,"氏名"]
[]
[null,"■学生のみなさんへ"]
[null,null,"学生生活全般に関して自己点検をお願いしています。今期受講した科目に関して、以下の質問項目に答えてください。面談時、指導教員（アドバイザー）の先生方から回答に対する具体的なアドバイスを受けてください。"]
[]
[]
[null,"■回答項目"]
[]
[null,1,"今期の目標は達成できましたか。"]
[]
[]
[]
[]
[null,2,"講義への取り組みは積極的でしたか。また、積極的に取り組むことができなかった講義は具体的に何ですか。"]
[]
[]
[]
[]
[null,3,"講義毎に勉強方法がつかめていますか。"]
[]
[]
[]
[]
[null,4,"それぞれの講義の理解度は自分の目標に達していますか。理解度が足りないと感じている講義は何ですか。"]
[]
[]
[]
[]
[null,5,"平日（試験勉強以外）１日当たりの勉強時間（平均）はどのくらいですか。勉強時間が足りないと感じている講義は何ですか。"]
[]
[]
[]
[]
[null,6,"アルバイトと勉強は両立できましたか。"]
[]
[]
[]
[]
[null,7,"サークル活動と勉強は両立できましたか。"]
[]
[]
[]
[]
[null,8,"卒業後の進路についてどのように考えていますか。"]
[]
[]
[]
[]
[null,9,"その他、アドバイスが必要なことはありますか。"]
[]
[]
[]
[]
[null,10]
[]
[]
[]
[]
[null,11]
[]
[]
[]
[]
[null,12]

{"sheet":"単位修得状況確認表（共通教育科目）","index":3,"n_rows":27,"n_cols":48,"rows_kept":27,"cut":false,"hidden":false,"merged":[[26,33,26,34],[26,35,26,36],[26,37,26,38],[19,40,20,40],[26,21,26,22],[26,23,26,24],[26,25,26,26],[26,27,26,28],[26,29,26,30],[26,31,26,32],[25,35,25,36],[25,37,25,38],[25,27,25,28],[25,29,25,30],[25,31,25,32],[25,33,25,34],[26,0,26,6],[26,7,26,8],[26,9,26,10],[26,11,26,12],[26,13,26,14],[26,15,26,16],[26,17,26,18],[26,19,26,20],[25,23,25,24],[25,25,25,26],[16,43,19,43],[19,1,20,3],[24,39,24,40],[25,0,25,6],[25,7,25,8],[25,9,25,10],[25,11,25,12],[25,13,25,14],[25,15,25,16],[25,17,25,18],[25,19,25,20],[25,21,25,22],[23,1,23,10],[4,31,4,32],[4,33,4,34],[4,35,4,36],[4,37,4,38],[6,0,14,0],[6,1,11,3],[9,4,10,4],[12,1,13,3],[4,19,4,20],[4,21,4,22],[4,23,4,24],[4,25,4,26],[4,27,4,28],[4,29,4,30],[4,11,4,12],[4,13,4,14],[4,15,4,16],[4,17,4,18],[22,0,22,6],[15,0,21,0],[15,1,18,3],[16,4,18,4],[1,0,1,41],[2,0,5,6],[2,7,2,38],[2,39,5,39],[2,40,5,40],[2,41,5,41],[3,7,3,10],[3,11,3,14],[3,15,3,18],[3,19,3,22],[3,23,3,26],[3,27,3,30],[3,31,3,34],[3,35,3,38],[4,7,4,8],[4,9,4,10]]}
[null,null,null,null,null,null,null,null,null,null,null,null,null,null,null,null,null,null,null,null,null,null,null,null,null,null,null,null,null,null,null,null,null,null,null,null,null,null,null,null,null,null,null,null,null,null,null,"A"]
["単位修得状況確認表（共通教育科目）",null,null,null,null,null,null,null,null,null,null,null,null,null,null,null,null,null,null,null,null,null,null,null,null,null,null,null,null,null,null,null,null,null,null,null,null,null,null,null,null,null,null,null,null,null,null,"B"]
["　",null,null,null,null,null,null,"取得単位数およびGP",null,null,null,null,null,null,null,null,null,null,null,null,null,null,null,null,null,null,null,null,null,null,null,null,null,null,null,null,null,null,null,"取得単位数","要修得\n単位数","累積GP",null,null,null,null,null,"C"]
[null,null,null,null,null,null,null,"　年次",null,null,null,"　年次",null,null,null,"　年次",null,null,null,"　年次",null,null,null,"　年次",null,null,null,"　年次",null,null,null,"　年次",null,null,null,"　年次",null,null,null,null,null,null,null,null,null,null,null,"D"]
[null,null,null,null,null,null,null,"１期",null,"２期",null,"３期",null,"４期",null,"５期",null,"６期",null,"７期",null,"８期",null,"９期",null,"10期",null,"11期",null,"12期",null,"13期",null,"14期",null,"15期",null,"16期",null,null,null,null,null,null,null,null,null,"F"]
[null,null,null,null,null,null,null,"単位","合計GP","単位","合計GP","単位","合計GP","単位","合計GP","単位","合計GP","単位","合計GP","単位","合計GP","単位","合計GP","単位","合計GP","単位","合計GP","単位","合計GP","単位","合計GP","単位","合計GP","単位","合計GP","単位","合計GP","単位","合計GP",null,null,null,null,null,null,null,null,"P"]
["必修科目","初年次教育科目",null,null,"初年次セミナーⅠ",null,null,null,null,null,null,null,null,null,null,null,null,null,null,null,null,null,null,null,null,null,null,null,null,null,null,null,null,null,null,null,null,null,null,{"$f":"SUM(H7,J7,L7,N7,P7,R7,T7,V7,X7,Z7,AB7,AD7,AF7,AH7,AJ7,AL7)","v":0},2,null,null,"１．オレンジ枠に科目・分野ごとの合計単位数を記入する。"]
[null,null,null,null,"初年次セミナーⅡ",null,null,null,null,null,null,null,null,null,null,null,null,null,null,null,null,null,null,null,null,null,null,null,null,null,null,null,null,null,null,null,null,null,null,0,2,null,null,"２．灰色枠に１と同様に合計GPを記入する。"]
[null,null,null,null,"大学と地域",null,null,null,null,null,null,null,null,null,null,null,null,null,null,null,null,null,null,null,null,null,null,null,null,null,null,null,null,null,null,null,null,null,null,0,2,null,null,"３．取得単位数を要修得単位数と比較する。"]
[null,null,null,null,"体育・健康","理論",null,null,null,null,null,null,null,null,null,null,null,null,null,null,null,null,null,null,null,null,null,null,null,null,null,null,null,null,null,null,null,null,null,0,1]
[null,null,null,null,null,"実習",null,null,null,null,null,null,null,null,null,null,null,null,null,null,null,null,null,null,null,null,null,null,null,null,null,null,null,null,null,null,null,null,null,0,1,null,null,"※合計GPには「単位数×GP」の計を記入する。"]
[null,null,null,null,"情報活用",null,null,null,null,null,null,null,null,null,null,null,null,null,null,null,null,null,null,null,null,null,null,null,null,null,null,null,null,null,null,null,null,null,null,0,2]
[null,"ｸﾞﾛｰﾊﾞﾙ教育科目",null,null,"英語",null,null,null,null,null,null,null,null,null,null,null,null,null,null,null,null,null,null,null,null,null,null,null,null,null,null,null,null,null,null,null,null,null,null,0,6]
[null,null,null,null,"異文化理解",null,null,null,null,null,null,null,null,null,null,null,null,null,null,null,null,null,null,null,null,null,null,null,null,null,null,null,null,null,null,null,null,null,null,0,2]
[null,"必修科目　計",null,null,null,null,null,null,null,null,null,null,null,null,null,null,null,null,null,null,null,null,null,null,null,null,null,null,null,null,null,null,null,null,null,null,null,null,null,0,18,{"$f":"SUM(I15,K15,M15,O15,Q15,S15,U15,W15,Y15,AA15,AC15,AE15,AG15,AI15,AK15,AM15)","v":0}]
["選択必修科目","教養教育科目",null,null,"人文・社会科学分野","選択科目",null,null,null,null,null,null,null,null,null,null,null,null,null,null,null,null,null,null,null,null,null,null,null,null,null,null,null,null,null,null,null,null,null,0,4]
[null,null,null,null,"自然科学分野","実験科目",null,null,null,null,null,null,null,null,null,null,null,null,null,null,null,null,null,null,null,null,null,null,null,null,null,null,null,null,null,null,null,null,null,0,1]
[null,null,null,null,null,"選択科目",null,null,null,null,null,null,null,null,null,null,null,null,null,null,null,null,null,null,null,null,null,null,null,null,null,null,null,null,null,null,null,null,null,0,2]
[null,null,null,null,null,"基礎教育入門科目",null,null,null,null,null,null,null,null,null,null,null,null,null,null,null,null,null,null,null,null,null,null,null,null,null,null,null,null,null,null,null,null,null,0,2]
[null,"教養活用科目",null,null,"統合Ⅰ（課題発見）",null,null,null,null,null,null,null,null,null,null,null,null,null,null,null,null,null,null,null,null,null,null,null,null,null,null,null,null,null,null,null,null,null,null,0,4]
[null,null,null,null,"統合Ⅱ（課題解決）",null,null,null,null,null,null,null,null,null,null,null,null,null,null,null,null,null,null,null,null,null,null,null,null,null,null,null,null,null,null,null,null,null,null,0]
[null,"選択必修科目　計",null,null,null,null,null,null,null,null,null,null,null,null,null,null,null,null,null,null,null,null,null,null,null,null,null,null,null,null,null,null,null,null,null,null,null,null,null,0,13,{"$f":"SUM(I22,K22,M22,O22,Q22,S22,U22,W22,Y22,AA22,AC22,AE22,AG22,AI22,AK22,AM22)","v":0}]
["合計",null,null,null,null,null,null,null,null,null,null,null,null,null,null,null,null,null,null,null,null,null,null,null,null,null,null,null,null,null,null,null,null,null,null,null,null,null,null,0,31,{"$f":"SUM(I23,K23,M23,O23,Q23,S23,U23,W23,Y23,AA23,AC23,AE23,AG23,AI23,AK23,AM23)","v":0}]
["※","「期を増やす」欄により学年を４年間増やすことが可。"]
[]
["【共通教育科目】評価Pの単位数",null,null,null,null,null,null,null,null,null,null,null,null,null,null,null,null,null,null,null,null,null,null,null,null,null,null,null,null,null,null,null,null,null,null,null,null,null,null,{"$f":"SUM(H26:AM26)","v":0}]
["【共通教育科目】不合格（評価F）の単位数",null,null,null,null,null,null,null,null,null,null,null,null,null,null,null,null,null,null,null,null,null,null,null,null,null,null,null,null,null,null,null,null,null,null,null,null,null,null,{"$f":"SUM(H27:AM27)","v":0}]

{"sheet":"単位修得状況確認表（専門教育科目）","index":4,"n_rows":97,"n_cols":51,"rows_kept":97,"cut":false,"hidden":false,"merged":[[4,23,4,24],[6,45,32,45],[6,46,32,46],[44,45,50,45],[44,46,50,46],[9,43,11,43],[13,43,16,43],[19,43,27,43],[1,0,1,41],[2,39,5,39],[3,7,3,10],[3,11,3,14],[3,15,3,18],[4,9,4,10],[4,11,4,12],[4,13,4,14],[2,41,5,41],[3,19,3,22],[4,25,4,26],[2,40,5,40],[4,35,4,36],[2,7,2,38],[4,7,4,8],[3,31,3,34],[3,35,3,38],[4,27,4,28],[4,29,4,30],[4,31,4,32],[4,33,4,34],[3,27,3,30],[4,37,4,38],[3,23,3,26],[4,15,4,16],[4,17,4,18],[4,19,4,20],[4,21,4,22],[95,13,95,14],[95,15,95,16],[95,17,95,18],[33,0,33,6],[89,0,89,6],[62,0,62,6],[42,0,42,6],[44,0,50,0],[44,1,50,1],[51,0,51,6],[2,0,5,2],[6,0,11,0],[6,1,11,2],[12,0,12,6],[14,0,32,0],[14,1,32,2],[44,2,50,2],[96,17,96,18],[96,19,96,20],[53,0,61,0],[95,0,95,6],[95,19,95,20],[96,21,96,22],[96,0,96,6],[96,7,96,8],[96,9,96,10],[96,11,96,12],[96,13,96,14],[96,15,96,16],[95,21,95,22],[91,0,91,6],[92,0,92,6],[95,7,95,8],[95,9,95,10],[95,11,95,12],[74,0,74,6],[76,0,88,0],[76,1,88,1],[53,1,61,1],[96,23,96,24],[96,25,96,26],[96,27,96,28],[96,29,96,30],[96,31,96,32],[96,33,96,34],[96,35,96,36],[96,37,96,38],[95,23,95,24],[95,25,95,26],[95,27,95,28],[95,29,95,30],[95,31,95,32],[95,33,95,34],[76,2,88,2],[66,50,67,50],[95,35,95,36],[95,37,95,38],[93,39,93,40],[76,45,88,45],[76,46,88,46],[53,46,61,46],[53,45,61,45],[93,1,93,10],[35,0,41,0],[35,1,41,1],[35,2,41,2],[64,0,73,0],[64,1,73,1],[64,2,73,2],[64,45,73,45],[64,46,73,46],[35,45,41,45],[35,46,41,46],[53,2,61,2]]}
[null,null,null,null,null,null,null,null,null,null,null,null,null,null,null,null,null,null,null,null,null,null,null,null,null,null,null,null,null,null,null,null,null,null,null,null,null,null,null,null,null,null,null,null,null,null,null,"A"]
["単位修得状況確認表（専門教育科目）",null,null,null,null,null,null,null,null,null,null,null,null,null,null,null,null,null,null,null,null,null,null,null,null,null,null,null,null,null,null,null,null,null,null,null,null,null,null,null,null,null,null,null,null,null,null,"B"]
["区分",null,null,"工 ","専","授","単","履修科目の評価およびGP",null,null,null,null,null,null,null,null,null,null,null,null,null,null,null,null,null,null,null,null,null,null,null,null,null,null,null,null,null,null,null,"取得単位数","要修得\n単位数","累積GP",null,"１．黄色枠に各科目の評価を記入する。",null,null,null,"C"]
[null,null,null,"学 "," ","業"," ","　年次",null,null,null,"　年次",null,null,null,"　年次",null,null,null,"　年次",null,null,null,"　年次",null,null,null,"　年次",null,null,null,"　年次",null,null,null,"　年次",null,null,null,null,null,null,null,"２．オレンジ枠に合計単位数を記入する。",null,null,null,"D"]
[null,null,null,"基",null,"科",null,"１期",null,"２期",null,"３期",null,"４期",null,"５期",null,"６期",null,"７期",null,"８期",null,"９期",null,"10期",null,"11期",null,"12期",null,"13期",null,"14期",null,"15期",null,"16期",null,null,null,null,null,"３．灰色枠に各科目の合計GPを計算し、記入する。",null,null,null,"F"]
[null,null,null,"礎","門","目","位","評価","合計GP","評価","合計GP","評価","合計GP","評価","合計GP","評価","合計GP","評価","合計GP","評価","合計GP","評価","合計GP","評価","合計GP","評価","合計GP","評価","合計GP","評価","合計GP","評価","合計GP","評価","合計GP","評価","合計GP","評価","合計GP",null,null,null,null,"４．合計GPの合計を記入する。",null,null,null,"P"]
["基礎教育科目","必修科目",null,"○",null,"微分積分学A I",2,null,null,null,null,null,null,null,null,null,null,null,null,null,null,null,null,null,null,null,null,null,null,null,null,null,null,null,null,null,null,null,null,null,null,null,null,"５．取得単位数を要修得単位数と比較する。",null,"必修科目","必修科目",259752611102,{"$f":"F7","v":"微分積分学A I"}]
[null,null,null,"○",null,"微分積分学A II",2,null,null,null,null,null,null,null,null,null,null,null,null,null,null,null,null,null,null,null,null,null,null,null,null,null,null,null,null,null,null,null,null,null,null,null,null,null,null,null,null,250092900001,"微分積分学A II"]
[null,null,null,"○",null,"線形代数学I",2,null,null,null,null,null,null,null,null,null,null,null,null,null,null,null,null,null,null,null,null,null,null,null,null,null,null,null,null,null,null,null,null,null,null,null,null,"※合計GPには「単位数×GP」の計を記入する。",null,null,null,250152511101,"線形代数学I"]
[null,null,null,"○",null,"線形代数学II",2,null,null,null,null,null,null,null,null,null,null,null,null,null,null,null,null,null,null,null,null,null,null,null,null,null,null,null,null,null,null,null,null,null,null,null,null,"※期をまたがって開講される科目は、成績の出された期に記入する。例えば通年の場合、後期に記入する。\n　",null,null,null,250082600001,"線形代数学II"]
[null,null,null,"○",null,"物理学基礎A I",2,null,null,null,null,null,null,null,null,null,null,null,null,null,null,null,null,null,null,null,null,null,null,null,null,null,null,null,null,null,null,null,null,null,null,null,null,null,null,null,null,250092900002,"物理学基礎A I"]
[null,null,null,"○",null,"物理学基礎A II",2,null,null,null,null,null,null,null,null,null,null,null,null,null,null,null,null,null,null,null,null,null,null,null,null,null,null,null,null,null,null,null,null,null,null,null,null,null,null,null,null,259742611101,"物理学基礎A II"]
["合計",null,null,null,null,null,null,null,null,null,null,null,null,null,null,null,null,null,null,null,null,null,null,null,null,null,null,null,null,null,null,null,null,null,null,null,null,null,null,{"$f":"SUM(H13,J13,L13,N13,P13,R13,T13,V13,X13,Z13,AB13,AD13,AF13,AH13,AJ13,AL13)","v":0},12,{"$f":"SUM(I13,K13,M13,O13,Q13,S13,U13,W13,Y13,AA13,AC13,AE13,AG13,AI13,AK13,AM13)","v":0},null,null,null,null,null,250092900003,0]
[null,null,null,null,null,null,null,null,null,null,null,null,null,null,null,null,null,null,null,null,null,null,null,null,null,null,null,null,null,null,null,null,null,null,null,null,null,null,null,null,null,null,null,"※随意科目については、GPおよびGPAの計算に含めない。また、進級・卒業要件には含まれない。"]
["専門科目","必修科目",null," ","○","プログラミング序論演習I",1,null,null,null,null,null,null,null,null,null,null,null,null,null,null,null,null,null,null,null,null,null,null,null,null,null,null,null,null,null,null,null,null,null,null,null,null,null,null,null,null,250092900004,{"$f":"F15","v":"プログラミング序論演習I"}]
[null,null,null,"○"," ","情報生体システム工学基礎",2,null,null,null,null,null,null,null,null,null,null,null,null,null,null,null,null,null,null,null,null,null,null,null,null,null,null,null,null,null,null,null,null,null,null,null,null,null,null,null,null,259742611102,"情報生体システム工学基礎"]
[null,null,null,"○",null,"確率統計序論",1,null,null,null,null,null,null,null,null,null,null,null,null,null,null,null,null,null,null,null,null,null,null,null,null,null,null,null,null,null,null,null,null,null,null,null,null,null,null,null,null,250092900005,"確率統計序論"]
[null,null,null,null,"○","プログラミング序論演習II",1,null,null,null,null,null,null,null,null,null,null,null,null,null,null,null,null,null,null,null,null,null,null,null,null,null,null,null,null,null,null,null,null,null,null,null,null,null,null,null,null,259752611108,"プログラミング序論演習II"]
[null,null,null,"○"," ","応用数学I",2,null,null,null,null,null,null,null,null,null,null,null,null,null,null,null,null,null,null,null,null,null,null,null,null,null,null,null,null,null,null,null,null,null,null,null,null,null,null,null,null,250092900006,"応用数学I"]
[null,null,null,"○",null,"応用数学I演習",1,null,null,null,null,null,null,null,null,null,null,null,null,null,null,null,null,null,null,null,null,null,null,null,null,null,null,null,null,null,null,null,null,null,null,null,null,"※評価Pの科目については、GPおよびGPAの計算に含まない。しかしながら、進級・卒業要件の累積単位数には含まれることがある（インターンシップ等）。",null,null,null,250092900007,"応用数学I演習"]
[null,null,null," ","○","情報生体ｼｽﾃﾑ工学実験I",1]
[null,null,null,"○"," ","応用数学II",2]
[null,null,null,"○",null,"応用数学II演習",1]
[null,null,null,null,"○","プログラミング言語I",2]
[null,null,null,null,"○","プログラミング言語I演習",1]
[null,null,null," ","○","情報生体ｼｽﾃﾑ工学実験II",1]
[null,null,null," ","○","情報生体ｼｽﾃﾑ工学実験III",2]
[null,null,null,null,"○","システム工学英語I",2]
[null,null,null,null,"○","エンジニアリングデザイン",2]
[null,null,null,null,"○","システム工学英語II",2]
[null,null,null," ","○","情　報　倫　理　学",2]
[null,null,null," ","○","情報生体ｼｽﾃﾑ工学実験IV",2]
[null,null,null," ","○","卒　　業　　研　　究",6]
["合計",null,null,null,null,null,null,null,null,null,null,null,null,null,null,null,null,null,null,null,null,null,null,null,null,null,null,null,null,null,null,null,null,null,null,null,null,null,null,{"$f":"SUM(H34,J34,L34,N34,P34,R34,T34,V34,X34,Z34,AB34,AD34,AF34,AH34,AJ34,AL34)","v":0},34,{"$f":"SUM(I34,K34,M34,O34,Q34,S34,U34,W34,Y34,AA34,AC34,AE34,AG34,AI34,AK34,AM34)","v":0}]
[]
["専門科目","情報基礎科目群","選択科目A群",null,"○","情　　報　　数　　学",2,null,null,null,null,null,null,null,null,null,null,null,null,null,null,null,null,null,null,null,null,null,null,null,null,null,null,null,null,null,null,null,null,null,null,null,null,null,null,"情報基礎科目群","選択科目A群",259752613116,{"$f":"F36","v":"情　　報　　数　　学"}]
[null,null,null," ","○","数値解析",2,null,null,null,null,null,null,null,null,null,null,null,null,null,null,null,null,null,null,null,null,null,null,null,null,null,null,null,null,null,null,null,null,null,null,null,null,null,null,null,null,259742612102,"数値解析"]
[null,null,null," ","○","電気回路学I及び演習",3,null,null,null,null,null,null,null,null,null,null,null,null,null,null,null,null,null,null,null,null,null,null,null,null,null,null,null,null,null,null,null,null,null,null,null,null,null,null,null,null,250222000001,"電気回路学I及び演習"]
[null,null,null," ","○","情　　報　　理　　論",2,null,null,null,null,null,null,null,null,null,null,null,null,null,null,null,null,null,null,null,null,null,null,null,null,null,null,null,null,null,null,null,null,null,null,null,null,null,null,null,null,259752611103,"情　　報　　理　　論"]
[null,null,null," ","○","計　算　機　工　学",2,null,null,null,null,null,null,null,null,null,null,null,null,null,null,null,null,null,null,null,null,null,null,null,null,null,null,null,null,null,null,null,null,null,null,null,null,null,null,null,null,250226000101,"計　算　機　工　学"]
[null,null,null," ","○","電気磁気学及び演習",3,null,null,null,null,null,null,null,null,null,null,null,null,null,null,null,null,null,null,null,null,null,null,null,null,null,null,null,null,null,null,null,null,null,null,null,null,null,null,null,null,250092900013,"電気磁気学及び演習"]
[null,null,null,null,"○","情報セキュリティ",2,null,null,null,null,null,null,null,null,null,null,null,null,null,null,null,null,null,null,null,null,null,null,null,null,null,null,null,null,null,null,null,null,null,null,null,null,null,null,null,null,259752613132,"情報セキュリティ"]
["合計",null,null,null,null,null,null,null,null,null,null,null,null,null,null,null,null,null,null,null,null,null,null,null,null,null,null,null,null,null,null,null,null,null,null,null,null,null,null,{"$f":"SUM(H43,J43,L43,N43,P43,R43,T43,V43,X43,Z43,AB43,AD43,AF43,AH43,AJ43,AL43)","v":0},10,{"$f":"SUM(I43,K43,M43,O43,Q43,S43,U43,W43,Y43,AA43,AC43,AE43,AG43,AI43,AK43,AM43)","v":0}]
[]
["専門科目","ソフトウェアコア科目群","選択科目B群",null,"○","アルゴリズムとデータ構造",2,null,null,null,null,null,null,null,null,null,null,null,null,null,null,null,null,null,null,null,null,null,null,null,null,null,null,null,null,null,null,null,null,null,null,null,null,null,null,"ソフトウェアコア科目群","選択科目B群",259752611101,{"$f":"F45","v":"アルゴリズムとデータ構造"}]
[null,null,null," ","○","プログラミング言語II",2,null,null,null,null,null,null,null,null,null,null,null,null,null,null,null,null,null,null,null,null,null,null,null,null,null,null,null,null,null,null,null,null,null,null,null,null,null,null,null,null,259752613126,"プログラミング言語II"]
[null,null,null,null,"○","ソフトウェア工学",2,null,null,null,null,null,null,null,null,null,null,null,null,null,null,null,null,null,null,null,null,null,null,null,null,null,null,null,null,null,null,null,null,null,null,null,null,null,null,null,null,259752613134,"ソフトウェア工学","「エ」が異なるためヒットせず","ソフトウエア工学 259752613134"]
[null,null,null," ","○","オペレーティングシステム論",2,null,null,null,null,null,null,null,null,null,null,null,null,null,null,null,null,null,null,null,null,null,null,null,null,null,null,null,null,null,null,null,null,null,null,null,null,null,null,null,null,259752613127,"オペレーティングシステム論"]
[null,null,null," ","○","プログラミング言語II演習",1,null,null,null,null,null,null,null,null,null,null,null,null,null,null,null,null,null,null,null,null,null,null,null,null,null,null,null,null,null,null,null,null,null,null,null,null,null,null,null,null,250092900014,"プログラミング言語II演習"]
[null,null,null," ","○","オートマトンと言語理論",2,null,null,null,null,null,null,null,null,null,null,null,null,null,null,null,null,null,null,null,null,null,null,null,null,null,null,null,null,null,null,null,null,null,null,null,null,null,null,null,null,259752613137,"オートマトンと言語理論"]
[null,null,null," ","○","データベース",2,null,null,null,null,null,null,null,null,null,null,null,null,null,null,null,null,null,null,null,null,null,null,null,null,null,null,null,null,null,null,null,null,null,null,null,null,null,null,null,null,259752613101,"データベース"]
["合計",null,null,null,null,null,null,null,null,null,null,null,null,null,null,null,null,null,null,null,null,null,null,null,null,null,null,null,null,null,null,null,null,null,null,null,null,null,null,{"$f":"SUM(H52,J52,L52,N52,P52,R52,T52,V52,X52,Z52,AB52,AD52,AF52,AH52,AJ52,AL52)","v":0},9,{"$f":"SUM(I52,K52,M52,O52,Q52,S52,U52,W52,Y52,AA52,AC52,AE52,AG52,AI52,AK52,AM52)","v":0}]
[]
["専門科目","情報システムコア科目群","選択科目C群"," ","○","情　報　論　理　回　路",2,null,null,null,null,null,null,null,null,null,null,null,null,null,null,null,null,null,null,null,null,null,null,null,null,null,null,null,null,null,null,null,null,null,null,null,null,null,null,"情報システムコア科目群","選択科目C群",259752611105,{"$f":"F54","v":"情　報　論　理　回　路"}]
[null,null,null,null,"○","計算機ネットワーク",2,null,null,null,null,null,null,null,null,null,null,null,null,null,null,null,null,null,null,null,null,null,null,null,null,null,null,null,null,null,null,null,null,null,null,null,null,null,null,null,null,259752613125,"計算機ネットワーク"]
[null,null,null,null,"○","計測工学",2,null,null,null,null,null,null,null,null,null,null,null,null,null,null,null,null,null,null,null,null,null,null,null,null,null,null,null,null,null,null,null,null,null,null,null,null,null,null,null,null,259752613103,"計測工学"]
[null,null,null," ","○","人工知能",2,null,null,null,null,null,null,null,null,null,null,null,null,null,null,null,null,null,null,null,null,null,null,null,null,null,null,null,null,null,null,null,null,null,null,null,null,null,null,null,null,259752613106,"人工知能"]
[null,null,null," ","○","情報通信工学",2,null,null,null,null,null,null,null,null,null,null,null,null,null,null,null,null,null,null,null,null,null,null,null,null,null,null,null,null,null,null,null,null,null,null,null,null,null,null,null,null,250092900015,"情報通信工学"]
[null,null,null,null,"○","マルチメディア",2,null,null,null,null,null,null,null,null,null,null,null,null,null,null,null,null,null,null,null,null,null,null,null,null,null,null,null,null,null,null,null,null,null,null,null,null,null,null,null,null,250092900016,"マルチメディア"]
[null,null,null,null,"○","自然言語処理",2,null,null,null,null,null,null,null,null,null,null,null,null,null,null,null,null,null,null,null,null,null,null,null,null,null,null,null,null,null,null,null,null,null,null,null,null,null,null,null,null,259752613118,"自然言語処理"]
[null,null,null," ","○","画像情報工学",2,null,null,null,null,null,null,null,null,null,null,null,null,null,null,null,null,null,null,null,null,null,null,null,null,null,null,null,null,null,null,null,null,null,null,null,null,null,null,null,null,259752613122,"画像情報工学"]
[null,null,null,null,"○","シミュレーション工学",2,null,null,null,null,null,null,null,null,null,null,null,null,null,null,null,null,null,null,null,null,null,null,null,null,null,null,null,null,null,null,null,null,null,null,null,null,null,null,null,null,251329000006,"シミュレーション工学","ヒットせず"]
["合計",null,null,null,null,null,null,null,null,null,null,null,null,null,null,null,null,null,null,null,null,null,null,null,null,null,null,null,null,null,null,null,null,null,null,null,null,null,null,{"$f":"SUM(H63,J63,L63,N63,P63,R63,T63,V63,X63,Z63,AB63,AD63,AF63,AH63,AJ63,AL63)","v":0},12,{"$f":"SUM(I63,K63,M63,O63,Q63,S63,U63,W63,Y63,AA63,AC63,AE63,AG63,AI63,AK63,AM63)","v":0}]
[]
["専門科目","情報生体システム科目群","選択科目D群"," ","○","生体機構学",2,null,null,null,null,null,null,null,null,null,null,null,null,null,null,null,null,null,null,null,null,null,null,null,null,null,null,null,null,null,null,null,null,null,null,null,null,null,null,"情報生体システム科目群","選択科目D群",250092900018,{"$f":"F65","v":"生体機構学"}]
[null,null,null," ","○","システム工学",2,null,null,null,null,null,null,null,null,null,null,null,null,null,null,null,null,null,null,null,null,null,null,null,null,null,null,null,null,null,null,null,null,null,null,null,null,null,null,null,null,259652616115,"システム工学"]
[null,null,null,null,"○","電気回路学II",2,null,null,null,null,null,null,null,null,null,null,null,null,null,null,null,null,null,null,null,null,null,null,null,null,null,null,null,null,null,null,null,null,null,null,null,null,null,null,null,null,259752614102,"電気回路学II","2件以上ヒット","電気回路学Ⅱ 250072700020\n電気回路学Ⅱ（情） 259752614102"]
[null,null,null,null,"○","生体情報工学I",2,null,null,null,null,null,null,null,null,null,null,null,null,null,null,null,null,null,null,null,null,null,null,null,null,null,null,null,null,null,null,null,null,null,null,null,null,null,null,null,null,259752613108,"生体情報工学I"]
[null,null,null,null,"○","電子回路",2,null,null,null,null,null,null,null,null,null,null,null,null,null,null,null,null,null,null,null,null,null,null,null,null,null,null,null,null,null,null,null,null,null,null,null,null,null,null,null,null,250226013001,"電子回路"]
[null,null,null," ","○","計算物理学",2,null,null,null,null,null,null,null,null,null,null,null,null,null,null,null,null,null,null,null,null,null,null,null,null,null,null,null,null,null,null,null,null,null,null,null,null,null,null,null,null,250092900021,"計算物理学"]
[null,null,null," ","○","電気化学",2,null,null,null,null,null,null,null,null,null,null,null,null,null,null,null,null,null,null,null,null,null,null,null,null,null,null,null,null,null,null,null,null,null,null,null,null,null,null,null,null,259552227104,"電気化学"]
[null,null,null," ","○","生体情報工学II",2,null,null,null,null,null,null,null,null,null,null,null,null,null,null,null,null,null,null,null,null,null,null,null,null,null,null,null,null,null,null,null,null,null,null,null,null,null,null,null,null,259752613109,"生体情報工学II"]
[null,null,null," ","○","ヒューマンインターフェイス",2,null,null,null,null,null,null,null,null,null,null,null,null,null,null,null,null,null,null,null,null,null,null,null,null,null,null,null,null,null,null,null,null,null,null,null,null,null,null,null,null,259752613102,"ヒューマンインターフェイス"]
[null,null,null," ","○","信頼性システム工学",2,null,null,null,null,null,null,null,null,null,null,null,null,null,null,null,null,null,null,null,null,null,null,null,null,null,null,null,null,null,null,null,null,null,null,null,null,null,null,null,null,259652116108,"信頼性システム工学"]
["合計",null,null,null,null,null,null,null,null,null,null,null,null,null,null,null,null,null,null,null,null,null,null,null,null,null,null,null,null,null,null,null,null,null,null,null,null,null,null,{"$f":"SUM(H75,J75,L75,N75,P75,R75,T75,V75,X75,Z75,AB75,AD75,AF75,AH75,AJ75,AL75)","v":0},12,{"$f":"SUM(I75,K75,M75,O75,Q75,S75,U75,W75,Y75,AA75,AC75,AE75,AG75,AI75,AK75,AM75)","v":0}]
[]
["専門科目","工学基礎・教養科目群","選択科目E群",null,"○","化学基礎",2,null,null,null,null,null,null,null,null,null,null,null,null,null,null,null,null,null,null,null,null,null,null,null,null,null,null,null,null,null,null,null,null,null,null,null,null,null,null,"工学基礎・教養科目群","選択科目E群",250099110002,{"$f":"F77","v":"化学基礎"}]
[null,null,null,null,"○","地球科学基礎",2,null,null,null,null,null,null,null,null,null,null,null,null,null,null,null,null,null,null,null,null,null,null,null,null,null,null,null,null,null,null,null,null,null,null,null,null,null,null,null,null,250299110001,"地球科学基礎"]
[null,null,null," ","○","情報生体システム工学\n　　　　　　　　　特別講義I",1,null,null,null,null,null,null,null,null,null,null,null,null,null,null,null,null,null,null,null,null,null,null,null,null,null,null,null,null,null,null,null,null,null,null,null,null,null,null,null,null,250092900025,"情報生体システム工学\n　　　　　　　　　特別講義I"]
[null,null,null," ","○","情報生体システム工学\n　　　　　　　　　特別講義II",1,null,null,null,null,null,null,null,null,null,null,null,null,null,null,null,null,null,null,null,null,null,null,null,null,null,null,null,null,null,null,null,null,null,null,null,null,null,null,null,null,250092900026,"情報生体システム工学\n　　　　　　　　　特別講義II"]
[null,null,null," ","○","原子力・放射線と環境",2,null,null,null,null,null,null,null,null,null,null,null,null,null,null,null,null,null,null,null,null,null,null,null,null,null,null,null,null,null,null,null,null,null,null,null,null,null,null,null,null,250042099101,"原子力・放射線と環境"]
[null,null,null," ","○","生　産　工　学　論",2,null,null,null,null,null,null,null,null,null,null,null,null,null,null,null,null,null,null,null,null,null,null,null,null,null,null,null,null,null,null,null,null,null,null,null,null,null,null,null,null,250299200001,"生　産　工　学　論"]
[null,null,null," ","○","エレクトロニクス論",2,null,null,null,null,null,null,null,null,null,null,null,null,null,null,null,null,null,null,null,null,null,null,null,null,null,null,null,null,null,null,null,null,null,null,null,null,null,null,null,null,250228100002,"エレクトロニクス論"]
[null,null,null," ","○","材　料　科　学　論",2,null,null,null,null,null,null,null,null,null,null,null,null,null,null,null,null,null,null,null,null,null,null,null,null,null,null,null,null,null,null,null,null,null,null,null,null,null,null,null,null,250228100005,"材　料　科　学　論"]
[null,null,null," ","○","科　学　技　術　論",2,null,null,null,null,null,null,null,null,null,null,null,null,null,null,null,null,null,null,null,null,null,null,null,null,null,null,null,null,null,null,null,null,null,null,null,null,null,null,null,null,250228100006,"科　学　技　術　論"]
[null,null,null," ","○","環境工学論",2,null,null,null,null,null,null,null,null,null,null,null,null,null,null,null,null,null,null,null,null,null,null,null,null,null,null,null,null,null,null,null,null,null,null,null,null,null,null,null,null,250228100004,"環境工学論"]
[null,null,null," ","○","エネルギー工学論",2,null,null,null,null,null,null,null,null,null,null,null,null,null,null,null,null,null,null,null,null,null,null,null,null,null,null,null,null,null,null,null,null,null,null,null,null,null,null,null,null,250228100003,"エネルギー工学論"]
[null,null,null,null,"○","工場見学",1,null,null,null,null,null,null,null,null,null,null,null,null,null,null,null,null,null,null,null,null,null,null,null,null,null,null,null,null,null,null,null,null,null,null,null,null,null,null,null,null,259752613401,"工場見学"]
[null,null,null,null,"○","インターンシップ",1,null,null,null,null,null,null,null,null,null,null,null,null,null,null,null,null,null,null,null,null,null,null,null,null,null,null,null,null,null,null,null,null,null,null,null,null,null,null,null,null,250223010041,"インターンシップ"]
["合計",null,null,null,null,null,null,null,null,null,null,null,null,null,null,null,null,null,null,null,null,null,null,null,null,null,null,null,null,null,null,null,null,null,null,null,null,null,null,{"$f":"SUM(H90,J90,L90,N90,P90,R90,T90,V90,X90,Z90,AB90,AD90,AF90,AH90,AJ90,AL90)","v":0},4,{"$f":"SUM(I90,K90,M90,O90,Q90,S90,U90,W90,Y90,AA90,AC90,AE90,AG90,AI90,AK90,AM90)","v":0}]
[]
["専門教育科目合計",null,null,null,null,null,null,{"$f":"SUM(H13,H34,H43,H52,H63,H75,H90)","v":0},0,0,0,0,0,0,0,0,0,0,0,0,0,0,0,0,0,0,0,0,0,0,0,0,0,0,0,0,0,0,0,{"$f":"SUM(H92,J92,L92,N92,P92,R92,T92,V92,X92,Z92,AB92,AD92,AF92,AH92,AJ92,AL92)","v":0},93,{"$f":"SUM(I92,K92,M92,O92,Q92,S92,U92,W92,Y92,AA92,AC92,AE92,AG92,AI92,AK92,AM92)","v":0}]
["修得総単位数",null,null,null,null,null,null,{"$f":"'単位修得状況確認表（共通教育科目）'!H23+'単位修得状況確認表（専門教育科目）'!H92","v":0},{"$f":"'単位修得状況確認表（共通教育科目）'!I23+'単位修得状況確認表（専門教育科目）'!I92","v":0},{"$f":"'単位修得状況確認表（共通教育科目）'!J23+'単位修得状況確認表（専門教育科目）'!J92","v":0},{"$f":"'単位修得状況確認表（共通教育科目）'!K23+'単位修得状況確認表（専門教育科目）'!K92","v":0},{"$f":"'単位修得状況確認表（共通教育科目）'!L23+'単位修得状況確認表（専門教育科目）'!L92","v":0},{"$f":"'単位修得状況確認表（共通教育科目）'!M23+'単位修得状況確認表（専門教育科目）'!M92","v":0},{"$f":"'単位修得状況確認表（共通教育科目）'!N23+'単位修得状況確認表（専門教育科目）'!N92","v":0},{"$f":"'単位修得状況確認表（共通教育科目）'!O23+'単位修得状況確認表（専門教育科目）'!O92","v":0},{"$f":"'単位修得状況確認表（共通教育科目）'!P23+'単位修得状況確認表（専門教育科目）'!P92","v":0},{"$f":"'単位修得状況確認表（共通教育科目）'!Q23+'単位修得状況確認表（専門教育科目）'!Q92","v":0},{"$f":"'単位修得状況確認表（共通教育科目）'!R23+'単位修得状況確認表（専門教育科目）'!R92","v":0},{"$f":"'単位修得状況確認表（共通教育科目）'!S23+'単位修得状況確認表（専門教育科目）'!S92","v":0},{"$f":"'単位修得状況確認表（共通教育科目）'!T23+'単位修得状況確認表（専門教育科目）'!T92","v":0},{"$f":"'単位修得状況確認表（共通教育科目）'!U23+'単位修得状況確認表（専門教育科目）'!U92","v":0},{"$f":"'単位修得状況確認表（共通教育科目）'!V23+'単位修得状況確認表（専門教育科目）'!V92","v":0},{"$f":"'単位修得状況確認表（共通教育科目）'!W23+'単位修得状況確認表（専門教育科目）'!W92","v":0},{"$f":"'単位修得状況確認表（共通教育科目）'!X23+'単位修得状況確認表（専門教育科目）'!X92","v":0},{"$f":"'単位修得状況確認表（共通教育科目）'!Y23+'単位修得状況確認表（専門教育科目）'!Y92","v":0},{"$f":"'単位修得状況確認表（共通教育科目）'!Z23+'単位修得状況確認表（専門教育科目）'!Z92","v":0},{"$f":"'単位修得状況確認表（共通教育科目）'!AA23+'単位修得状況確認表（専門教育科目）'!AA92","v":0},{"$f":"'単位修得状況確認表（共通教育科目）'!AB23+'単位修得状況確認表（専門教育科目）'!AB92","v":0},{"$f":"'単位修得状況確認表（共通教育科目）'!AC23+'単位修得状況確認表（専門教育科目）'!AC92","v":0},{"$f":"'単位修得状況確認表（共通教育科目）'!AD23+'単位修得状況確認表（専門教育科目）'!AD92","v":0},{"$f":"'単位修得状況確認表（共通教育科目）'!AE23+'単位修得状況確認表（専門教育科目）'!AE92","v":0},{"$f":"'単位修得状況確認表（共通教育科目）'!AF23+'単位修得状況確認表（専門教育科目）'!AF92","v":0},{"$f":"'単位修得状況確認表（共通教育科目）'!AG23+'単位修得状況確認表（専門教育科目）'!AG92","v":0},{"$f":"'単位修得状況確認表（共通教育科目）'!AH23+'単位修得状況確認表（専門教育科目）'!AH92","v":0},{"$f":"'単位修得状況確認表（共通教育科目）'!AI23+'単位修得状況確認表（専門教育科目）'!AI92","v":0},{"$f":"'単位修得状況確認表（共通教育科目）'!AJ23+'単位修得状況確認表（専門教育科目）'!AJ92","v":0},{"$f":"'単位修得状況確認表（共通教育科目）'!AK23+'単位修得状況確認表（専門教育科目）'!AK92","v":0},{"$f":"'単位修得状況確認表（共通教育科目）'!AL23+'単位修得状況確認表（専門教育科目）'!AL92","v":0},{"$f":"'単位修得状況確認表（共通教育科目）'!AM23+'単位修得状況確認表（専門教育科目）'!AM92","v":0},{"$f":"SUM(H93,J93,L93,N93,P93,R93,T93,V93,X93,Z93,AB93,AD93,AF93,AH93,AJ93,AL93)","v":0},124,{"$f":"SUM(I93,K93,M93,O93,Q93,S93,U93,W93,Y93,AA93,AC93,AE93,AG93,AI93,AK93,AM93)","v":0}]
["※","「期を増やす」欄により学年を４年間増やすことが可。",null,null,null,null,null,null,null,null,null,null,null,null,null,null,null,null,null,null,null,null,null,null,null,null,null,null,null,null,null,null,null,null,null,null,null,null,null,"累積GPA",null,{"$f":"IF(AN93-AN96>0,AP93/(AN93-AN96-'単位修得状況確認表（共通教育科目）'!AN26+AN97+'単位修得状況確認表（共通教育科目）'!AN27),\"\")","v":""}]
[]
["【専門教育科目】評価Pの単位数",null,null,null,null,null,null,null,null,null,null,null,null,null,null,null,null,null,null,null,null,null,null,null,null,null,null,null,null,null,null,null,null,null,null,null,null,null,null,{"$f":"SUM(H96:AM96)","v":0}]
["【専門教育科目】不合格（評価F）の単位数",null,null,null,null,null,null,null,null,null,null,null,null,null,null,null,null,null,null,null,null,null,null,null,null,null,null,null,null,null,null,null,null,null,null,null,null,null,null,{"$f":"SUM(H97:AM97)","v":0}]

{"sheet":"累積グラフ","index":5,"n_rows":233,"n_cols":7,"rows_kept":233,"cut":false,"hidden":false,"merged":[[3,2,3,3],[3,4,3,5],[34,2,34,3],[34,4,34,5],[65,2,65,3]]}
[]
[null,"共通教育科目（必修科目）"]
[]
[null,null,"初年次教育科目",null,"ｸﾞﾛｰﾊﾞﾙ教育科目"]
[null,null,"取得単位数","累積取得単位数","取得単位数","累積取得単位数"]
[null,"1年前期終了時",{"$f":"SUM('単位修得状況確認表（共通教育科目）'!H7:H12)","v":0},{"$f":"SUM(C$6:C6)","v":0},{"$f":"SUM('単位修得状況確認表（共通教育科目）'!H13:H14)","v":0},{"$f":"SUM(E$6:E6)","v":0}]
[null,"1年後期終了時",{"$f":"SUM('単位修得状況確認表（共通教育科目）'!J7:J12)","v":0},{"$f":"SUM(C$6:C7)","v":0},{"$f":"SUM('単位修得状況確認表（共通教育科目）'!J13:J14)","v":0},{"$f":"SUM(E$6:E7)","v":0}]
[null,"2年前期終了時",{"$f":"SUM('単位修得状況確認表（共通教育科目）'!L7:L12)","v":0},{"$f":"SUM(C$6:C8)","v":0},{"$f":"SUM('単位修得状況確認表（共通教育科目）'!L13:L14)","v":0},{"$f":"SUM(E$6:E8)","v":0}]
[null,"2年後期終了時",{"$f":"SUM('単位修得状況確認表（共通教育科目）'!N7:N12)","v":0},{"$f":"SUM(C$6:C9)","v":0},{"$f":"SUM('単位修得状況確認表（共通教育科目）'!N13:N14)","v":0},{"$f":"SUM(E$6:E9)","v":0}]
[null,"３年前期終了時",{"$f":"SUM('単位修得状況確認表（共通教育科目）'!P7:P12)","v":0},{"$f":"SUM(C$6:C10)","v":0},{"$f":"SUM('単位修得状況確認表（共通教育科目）'!P13:P14)","v":0},{"$f":"SUM(E$6:E10)","v":0}]
[null,"３年後期終了時",{"$f":"SUM('単位修得状況確認表（共通教育科目）'!R7:R12)","v":0},{"$f":"SUM(C$6:C11)","v":0},{"$f":"SUM('単位修得状況確認表（共通教育科目）'!R13:R14)","v":0},{"$f":"SUM(E$6:E11)","v":0}]
[null,"4年前期終了時",{"$f":"SUM('単位修得状況確認表（共通教育科目）'!T7:T12)","v":0},{"$f":"SUM(C$6:C12)","v":0},{"$f":"SUM('単位修得状況確認表（共通教育科目）'!T13:T14)","v":0},{"$f":"SUM(E$6:E12)","v":0}]
[null,"4年後期終了時",{"$f":"SUM('単位修得状況確認表（共通教育科目）'!V7:V12)","v":0},{"$f":"SUM(C$6:C13)","v":0},{"$f":"SUM('単位修得状況確認表（共通教育科目）'!V13:V14)","v":0},{"$f":"SUM(E$6:E13)","v":0}]
[]
[]
[]
[]
[]
[]
[]
[]
[]
[]
[]
[]
[]
[]
[]
[]
[]
[]
[]
[null,"共通教育科目（選択必修科目）"]
[]
[null,null,"教養教育科目",null,"教養活用科目"]
[null,null,"取得単位数","累積取得単位数","取得単位数","累積取得単位数"]
[null,"1年前期終了時",{"$f":"SUM('単位修得状況確認表（共通教育科目）'!H16:H19)","v":0},{"$f":"SUM(C$37:C37)","v":0},{"$f":"SUM('単位修得状況確認表（共通教育科目）'!H20:H21)","v":0},{"$f":"SUM(E$37:E37)","v":0}]
[null,"1年後期終了時",{"$f":"SUM('単位修得状況確認表（共通教育科目）'!J16:J19)","v":0},{"$f":"SUM(C$37:C38)","v":0},{"$f":"SUM('単位修得状況確認表（共通教育科目）'!J20:J21)","v":0},{"$f":"SUM(E$37:E38)","v":0}]
[null,"2年前期終了時",{"$f":"SUM('単位修得状況確認表（共通教育科目）'!L16:L19)","v":0},{"$f":"SUM(C$37:C39)","v":0},{"$f":"SUM('単位修得状況確認表（共通教育科目）'!L20:L21)","v":0},{"$f":"SUM(E$37:E39)","v":0}]
[null,"2年後期終了時",{"$f":"SUM('単位修得状況確認表（共通教育科目）'!N16:N19)","v":0},{"$f":"SUM(C$37:C40)","v":0},{"$f":"SUM('単位修得状況確認表（共通教育科目）'!N20:N21)","v":0},{"$f":"SUM(E$37:E40)","v":0}]
[null,"３年前期終了時",{"$f":"SUM('単位修得状況確認表（共通教育科目）'!P16:P19)","v":0},{"$f":"SUM(C$37:C41)","v":0},{"$f":"SUM('単位修得状況確認表（共通教育科目）'!P20:P21)","v":0},{"$f":"SUM(E$37:E41)","v":0}]
[null,"３年後期終了時",{"$f":"SUM('単位修得状況確認表（共通教育科目）'!R16:R19)","v":0},{"$f":"SUM(C$37:C42)","v":0},{"$f":"SUM('単位修得状況確認表（共通教育科目）'!R20:R21)","v":0},{"$f":"SUM(E$37:E42)","v":0}]
[null,"4年前期終了時",{"$f":"SUM('単位修得状況確認表（共通教育科目）'!T16:T19)","v":0},{"$f":"SUM(C$37:C43)","v":0},{"$f":"SUM('単位修得状況確認表（共通教育科目）'!T20:T21)","v":0},{"$f":"SUM(E$37:E43)","v":0}]
[null,"4年後期終了時",{"$f":"SUM('単位修得状況確認表（共通教育科目）'!V16:V19)","v":0},{"$f":"SUM(C$37:C44)","v":0},{"$f":"SUM('単位修得状況確認表（共通教育科目）'!V20:V21)","v":0},{"$f":"SUM(E$37:E44)","v":0}]
[]
[]
[]
[]
[]
[]
[]
[]
[]
[]
[]
[]
[]
[]
[]
[]
[]
[]
[]
[null,"基礎教育科目"]
[]
[null,null,"必修科目"]
[null,null,"取得単位数","累積取得単位数"]
[null,"1年前期終了時",{"$f":"'単位修得状況確認表（専門教育科目）'!H13","v":0},{"$f":"SUM(C$68:C68)","v":0}]
[null,"1年後期終了時",{"$f":"'単位修得状況確認表（専門教育科目）'!J13","v":0},{"$f":"SUM(C$68:C69)","v":0}]
[null,"2年前期終了時",{"$f":"'単位修得状況確認表（専門教育科目）'!L13","v":0},{"$f":"SUM(C$68:C70)","v":0}]
[null,"2年後期終了時",{"$f":"'単位修得状況確認表（専門教育科目）'!N13","v":0},{"$f":"SUM(C$68:C71)","v":0}]
[null,"３年前期終了時",{"$f":"'単位修得状況確認表（専門教育科目）'!P13","v":0},{"$f":"SUM(C$68:C72)","v":0}]
[null,"３年後期終了時",{"$f":"'単位修得状況確認表（専門教育科目）'!R13","v":0},{"$f":"SUM(C$68:C73)","v":0}]
[null,"4年前期終了時",{"$f":"'単位修得状況確認表（専門教育科目）'!T13","v":0},{"$f":"SUM(C$68:C74)","v":0}]
[null,"4年後期終了時",{"$f":"'単位修得状況確認表（専門教育科目）'!V13","v":0},{"$f":"SUM(C$68:C75)","v":0}]
[]
[]
[]
[]
[]
[]
[]
[null,"必修科目"]
[]
[null,null,"取得単位数","累積取得単位数"]
[null,"1年前期終了時",{"$f":"'単位修得状況確認表（専門教育科目）'!H34","v":0},{"$f":"SUM(C$86:C86)","v":0}]
[null,"1年後期終了時",{"$f":"'単位修得状況確認表（専門教育科目）'!J34","v":0},{"$f":"SUM(C$86:C87)","v":0}]
[null,"2年前期終了時",{"$f":"'単位修得状況確認表（専門教育科目）'!L34","v":0},{"$f":"SUM(C$86:C88)","v":0}]
[null,"2年後期終了時",{"$f":"'単位修得状況確認表（専門教育科目）'!N34","v":0},{"$f":"SUM(C$86:C89)","v":0}]
[null,"３年前期終了時",{"$f":"'単位修得状況確認表（専門教育科目）'!P34","v":0},{"$f":"SUM(C$86:C90)","v":0}]
[null,"３年後期終了時",{"$f":"'単位修得状況確認表（専門教育科目）'!R34","v":0},{"$f":"SUM(C$86:C91)","v":0}]
[null,"4年前期終了時",{"$f":"'単位修得状況確認表（専門教育科目）'!T34","v":0},{"$f":"SUM(C$86:C92)","v":0}]
[null,"4年後期終了時",{"$f":"'単位修得状況確認表（専門教育科目）'!V34","v":0},{"$f":"SUM(C$86:C93)","v":0}]
[]
[]
[]
[]
[]
[]
[]
[null,"情報基礎科目群（選択科目A群）"]
[]
[null,null,"取得単位数","累積取得単位数"]
[null,"1年前期終了時",{"$f":"'単位修得状況確認表（専門教育科目）'!H43","v":0},{"$f":"SUM(C$104:C104)","v":0}]
[null,"1年後期終了時",{"$f":"'単位修得状況確認表（専門教育科目）'!J43","v":0},{"$f":"SUM(C$104:C105)","v":0}]
[null,"2年前期終了時",{"$f":"'単位修得状況確認表（専門教育科目）'!L43","v":0},{"$f":"SUM(C$104:C106)","v":0}]
[null,"2年後期終了時",{"$f":"'単位修得状況確認表（専門教育科目）'!N43","v":0},{"$f":"SUM(C$104:C107)","v":0}]
[null,"３年前期終了時",{"$f":"'単位修得状況確認表（専門教育科目）'!P43","v":0},{"$f":"SUM(C$104:C108)","v":0}]
[null,"３年後期終了時",{"$f":"'単位修得状況確認表（専門教育科目）'!R43","v":0},{"$f":"SUM(C$104:C109)","v":0}]
[null,"4年前期終了時",{"$f":"'単位修得状況確認表（専門教育科目）'!T43","v":0},{"$f":"SUM(C$104:C110)","v":0}]
[null,"4年後期終了時",{"$f":"'単位修得状況確認表（専門教育科目）'!V43","v":0},{"$f":"SUM(C$104:C111)","v":0}]
[]
[]
[]
[]
[]
[]
[]
[null,"ソフトウェアコア科目群（選択科目B群）"]
[]
[null,null,"取得単位数","累積取得単位数"]
[null,"1年前期終了時",{"$f":"'単位修得状況確認表（専門教育科目）'!H52","v":0},{"$f":"SUM(C$122:C122)","v":0}]
[null,"1年後期終了時",{"$f":"'単位修得状況確認表（専門教育科目）'!J52","v":0},{"$f":"SUM(C$122:C123)","v":0}]
[null,"2年前期終了時",{"$f":"'単位修得状況確認表（専門教育科目）'!L52","v":0},{"$f":"SUM(C$122:C124)","v":0}]
[null,"2年後期終了時",{"$f":"'単位修得状況確認表（専門教育科目）'!N52","v":0},{"$f":"SUM(C$122:C125)","v":0}]
[null,"３年前期終了時",{"$f":"'単位修得状況確認表（専門教育科目）'!P52","v":0},{"$f":"SUM(C$122:C126)","v":0}]
[null,"３年後期終了時",{"$f":"'単位修得状況確認表（専門教育科目）'!R52","v":0},{"$f":"SUM(C$122:C127)","v":0}]
[null,"4年前期終了時",{"$f":"'単位修得状況確認表（専門教育科目）'!T52","v":0},{"$f":"SUM(C$122:C128)","v":0}]
[null,"4年後期終了時",{"$f":"'単位修得状況確認表（専門教育科目）'!V52","v":0},{"$f":"SUM(C$122:C129)","v":0}]
[]
[]
[]
[]
[]
[]
[]
[null,"情報システムコア科目群（選択科目C群）"]
[]
[null,null,"取得単位数","累積取得単位数"]
[null,"1年前期終了時",{"$f":"'単位修得状況確認表（専門教育科目）'!H63","v":0},{"$f":"SUM(C$140:C140)","v":0}]
[null,"1年後期終了時",{"$f":"'単位修得状況確認表（専門教育科目）'!J63","v":0},{"$f":"SUM(C$140:C141)","v":0}]
[null,"2年前期終了時",{"$f":"'単位修得状況確認表（専門教育科目）'!L63","v":0},{"$f":"SUM(C$140:C142)","v":0}]
[null,"2年後期終了時",{"$f":"'単位修得状況確認表（専門教育科目）'!N63","v":0},{"$f":"SUM(C$140:C143)","v":0}]
[null,"３年前期終了時",{"$f":"'単位修得状況確認表（専門教育科目）'!P63","v":0},{"$f":"SUM(C$140:C144)","v":0}]
[null,"３年後期終了時",{"$f":"'単位修得状況確認表（専門教育科目）'!R63","v":0},{"$f":"SUM(C$140:C145)","v":0}]
[null,"4年前期終了時",{"$f":"'単位修得状況確認表（専門教育科目）'!T63","v":0},{"$f":"SUM(C$140:C146)","v":0}]
[null,"4年後期終了時",{"$f":"'単位修得状況確認表（専門教育科目）'!V63","v":0},{"$f":"SUM(C$140:C147)","v":0}]
[]
[]
[]
[]
[]
[]
[]
[null,"情報生体システム科目群（選択科目D群）"]
[]
[null,null,"取得単位数","累積取得単位数"]
[null,"1年前期終了時",{"$f":"'単位修得状況確認表（専門教育科目）'!H75","v":0},{"$f":"SUM(C$158:C158)","v":0}]
[null,"1年後期終了時",{"$f":"'単位修得状況確認表（専門教育科目）'!J75","v":0},{"$f":"SUM(C$158:C159)","v":0}]
[null,"2年前期終了時",{"$f":"'単位修得状況確認表（専門教育科目）'!L75","v":0},{"$f":"SUM(C$158:C160)","v":0}]
[null,"2年後期終了時",{"$f":"'単位修得状況確認表（専門教育科目）'!N75","v":0},{"$f":"SUM(C$158:C161)","v":0}]
[null,"３年前期終了時",{"$f":"'単位修得状況確認表（専門教育科目）'!P75","v":0},{"$f":"SUM(C$158:C162)","v":0}]
[null,"３年後期終了時",{"$f":"'単位修得状況確認表（専門教育科目）'!R75","v":0},{"$f":"SUM(C$158:C163)","v":0}]
[null,"4年前期終了時",{"$f":"'単位修得状況確認表（専門教育科目）'!T75","v":0},{"$f":"SUM(C$158:C164)","v":0}]
[null,"4年後期終了時",{"$f":"'単位修得状況確認表（専門教育科目）'!V75","v":0},{"$f":"SUM(C$158:C165)","v":0}]
[]
[]
[]
[]
[]
[]
[]
[null,"工学基礎・教養科目群（選択科目E群）"]
[]
[null,null,"取得単位数","累積取得単位数"]
[null,"1年前期終了時",{"$f":"'単位修得状況確認表（専門教育科目）'!H90","v":0},{"$f":"SUM(C$176:C176)","v":0}]
[null,"1年後期終了時",{"$f":"'単位修得状況確認表（専門教育科目）'!J90","v":0},{"$f":"SUM(C$176:C177)","v":0}]
[null,"2年前期終了時",{"$f":"'単位修得状況確認表（専門教育科目）'!L90","v":0},{"$f":"SUM(C$176:C178)","v":0}]
[null,"2年後期終了時",{"$f":"'単位修得状況確認表（専門教育科目）'!N90","v":0},{"$f":"SUM(C$176:C179)","v":0}]
[null,"３年前期終了時",{"$f":"'単位修得状況確認表（専門教育科目）'!P90","v":0},{"$f":"SUM(C$176:C180)","v":0}]
[null,"３年後期終了時",{"$f":"'単位修得状況確認表（専門教育科目）'!R90","v":0},{"$f":"SUM(C$176:C181)","v":0}]
[null,"4年前期終了時",{"$f":"'単位修得状況確認表（専門教育科目）'!T90","v":0},{"$f":"SUM(C$176:C182)","v":0}]
[null,"4年後期終了時",{"$f":"'単位修得状況確認表（専門教育科目）'!V90","v":0},{"$f":"SUM(C$176:C183)","v":0}]
[]
[]
[]
[]
[]
[]
[]
[null,"累積単位数"]
[]
[null,null,"取得単位数","累積取得単位数"]
[null,"1年前期終了時",{"$f":"SUM(C6,E6,C37,E37,C68,C86,C104,C122,C140,C158,C176)","v":0},{"$f":"SUM(C$194:C194)","v":0}]
[null,"1年後期終了時",{"$f":"SUM(C7,E7,C38,E38,C69,C87,C105,C123,C141,C159,C177)","v":0},{"$f":"SUM(C$194:C195)","v":0}]
[null,"2年前期終了時",{"$f":"SUM(C8,E8,C39,E39,C70,C88,C106,C124,C142,C160,C178)","v":0},{"$f":"SUM(C$194:C196)","v":0}]
[null,"2年後期終了時",{"$f":"SUM(C9,E9,C40,E40,C71,C89,C107,C125,C143,C161,C179)","v":0},{"$f":"SUM(C$194:C197)","v":0}]
[null,"３年前期終了時",{"$f":"SUM(C10,E10,C41,E41,C72,C90,C108,C126,C144,C162,C180)","v":0},{"$f":"SUM(C$194:C198)","v":0}]
[null,"３年後期終了時",{"$f":"SUM(C11,E11,C42,E42,C73,C91,C109,C127,C145,C163,C181)","v":0},{"$f":"SUM(C$194:C199)","v":0}]
[null,"4年前期終了時",{"$f":"SUM(C12,E12,C43,E43,C74,C92,C110,C128,C146,C164,C182)","v":0},{"$f":"SUM(C$194:C200)","v":0}]
[null,"4年後期終了時",{"$f":"SUM(C13,E13,C44,E44,C75,C93,C111,C129,C147,C165,C183)","v":0},{"$f":"SUM(C$194:C201)","v":0}]
[]
[]
[]
[]
[]
[]
[]
[]
[]
[]
[]
[]
[]
[]
[]
[]
[]
[]
[]
[]
[]
[null,"GPA"]
[]
[null,null,"累積GP","累積GPA","GPA累積単位数","累積P","累積F"]
[null,"1年前期終了時",{"$f":"'単位修得状況確認表（共通教育科目）'!I23+'単位修得状況確認表（専門教育科目）'!I92","v":0},{"$f":"IF(E226=0,\"\",C226/E226)","v":""},{"$f":"D194-F226+G226","v":0},{"$f":"'単位修得状況確認表（共通教育科目）'!H26+'単位修得状況確認表（専門教育科目）'!H96","v":0},{"$f":"'単位修得状況確認表（共通教育科目）'!H27+'単位修得状況確認表（専門教育科目）'!H97","v":0}]
[null,"1年後期終了時",{"$f":"C226+'単位修得状況確認表（共通教育科目）'!K23+'単位修得状況確認表（専門教育科目）'!K92","v":0},"",{"$f":"D195-F227+G227","v":0},{"$f":"F226+'単位修得状況確認表（共通教育科目）'!J26+'単位修得状況確認表（専門教育科目）'!J96","v":0},{"$f":"G226+'単位修得状況確認表（共通教育科目）'!J27+'単位修得状況確認表（専門教育科目）'!J97","v":0}]
[null,"2年前期終了時",{"$f":"C227+'単位修得状況確認表（共通教育科目）'!M23+'単位修得状況確認表（専門教育科目）'!M92","v":0},"",{"$f":"D196-F228+G228","v":0},{"$f":"F227+'単位修得状況確認表（共通教育科目）'!L26+'単位修得状況確認表（専門教育科目）'!L96","v":0},{"$f":"G227+'単位修得状況確認表（共通教育科目）'!L27+'単位修得状況確認表（専門教育科目）'!L97","v":0}]
[null,"2年後期終了時",{"$f":"C228+'単位修得状況確認表（共通教育科目）'!O23+'単位修得状況確認表（専門教育科目）'!O92","v":0},"",0,{"$f":"F228+'単位修得状況確認表（共通教育科目）'!N26+'単位修得状況確認表（専門教育科目）'!N96","v":0},{"$f":"G228+'単位修得状況確認表（共通教育科目）'!N27+'単位修得状況確認表（専門教育科目）'!N97","v":0}]
[null,"３年前期終了時",{"$f":"C229+'単位修得状況確認表（共通教育科目）'!Q23+'単位修得状況確認表（専門教育科目）'!Q92","v":0},"",0,{"$f":"F229+'単位修得状況確認表（共通教育科目）'!P26+'単位修得状況確認表（専門教育科目）'!P96","v":0},{"$f":"G229+'単位修得状況確認表（共通教育科目）'!P27+'単位修得状況確認表（専門教育科目）'!P97","v":0}]
[null,"３年後期終了時",{"$f":"C230+'単位修得状況確認表（共通教育科目）'!S23+'単位修得状況確認表（専門教育科目）'!S92","v":0},"",0,{"$f":"F230+'単位修得状況確認表（共通教育科目）'!R26+'単位修得状況確認表（専門教育科目）'!R96","v":0},{"$f":"G230+'単位修得状況確認表（共通教育科目）'!R27+'単位修得状況確認表（専門教育科目）'!R97","v":0}]
[null,"4年前期終了時",{"$f":"C231+'単位修得状況確認表（共通教育科目）'!U23+'単位修得状況確認表（専門教育科目）'!U92","v":0},"",0,{"$f":"F231+'単位修得状況確認表（共通教育科目）'!T26+'単位修得状況確認表（専門教育科目）'!T96","v":0},{"$f":"G231+'単位修得状況確認表（共通教育科目）'!T27+'単位修得状況確認表（専門教育科目）'!T97","v":0}]
[null,"4年後期終了時",{"$f":"C232+'単位修得状況確認表（共通教育科目）'!W23+'単位修得状況確認表（専門教育科目）'!W92","v":0},"",0,{"$f":"F232+'単位修得状況確認表（共通教育科目）'!V26+'単位修得状況確認表（専門教育科目）'!V96","v":0},{"$f":"G232+'単位修得状況確認表（共通教育科目）'!V27+'単位修得状況確認表（専門教育科目）'!V97","v":0}]